bitfinex/quotes_SOLUSD_20240816
["timestamp","ask_amount","ask_price","bid_price","bid_amount"]
[1723795294017,1.89180749,144.95,144.94,105.37647]
[1723795294214,1.89180749,144.95,144.94,105.50196]
[1723795295622,1.89180749,144.95,144.94,60.0]
[1723795296926,1.89180749,144.95,144.94,60.25098]
[1723795297129,1.89180749,144.95,144.94,105.37647]
[1723795297936,1.89180749,144.95,144.94,105.50196]
[1723795300877,1.89180749,144.95,144.94,105.37647]
[1723795301169,1.89180749,144.95,144.94,85.37647]
[1723795301372,1.89180749,144.95,144.94,105.37647]
[1723795303873,1.89180749,144.95,144.94,105.50196]
[1723795304074,1.89180749,144.95,144.94,40.0]
[1723795304364,1.89180749,144.95,144.94,60.0]
[1723795305379,1.89180749,144.95,144.94,60.37647]
[1723795308365,1.89180749,144.95,144.94,105.37647]
[1723795309697,1.89180749,144.95,144.94,105.50196]
[1723795309885,1.89180749,144.95,144.94,115.74196]
[1723795311056,1.89180749,144.95,144.94,105.50196]
[1723795311378,1.89180749,144.95,144.94,115.74196]
[1723795315982,1.0,145.0,144.99,20.12549]
[1723795316182,1.0,145.0,144.99,97.12070876]
[1723795316496,1.0,145.0,144.99,95.74196]
[1723795317404,0.7491,145.0,144.99,103.30504305]
[1723795318021,0.7491,145.0,144.99,91.68626]
[1723795318170,0.7491,145.0,144.99,103.30484488]
[1723795318515,0.7491,145.0,144.99,101.92626]
[1723795319171,0.7491,145.0,144.99,103.30473377]
[1723795320105,0.7491,145.0,144.99,101.92626]
[1723795320276,0.7491,145.0,144.99,81.92626]
[1723795320475,0.7491,145.0,144.99,103.30474095]
[1723795320995,0.7491,145.0,144.99,101.92626]
[1723795321319,0.7491,145.0,144.99,51.61842891]
[1723795321606,0.7491,145.0,144.99,41.37871524]
[1723795321989,0.7491,145.0,144.99,41.3786684]
[1723795322214,0.7491,145.0,144.99,41.37878185]
[1723795322509,0.7491,145.0,144.99,42.07086323]
[1723795322807,0.7491,145.0,144.99,42.07101766]
[1723795322993,0.7491,145.0,144.99,40.0]
[1723795323188,0.7491,145.0,144.99,42.57297087]
[1723795323426,0.7491,145.0,144.99,88.95157233]
[1723795323988,0.7491,145.0,144.99,95.19141637]
[1723795324397,0.7491,145.0,144.99,88.95157233]
[1723795325301,0.7491,145.0,144.99,75.18710745]
[1723795325482,0.7491,145.0,144.99,88.95157233]
[1723795326181,0.7491,145.0,144.99,42.07101087]
[1723795326379,0.7491,145.0,144.99,53.68972005]
[1723795326806,0.7491,145.0,144.99,52.31101087]
[1723795327401,0.7491,145.0,144.99,52.43650087]
[1723795327595,0.7491,145.0,144.99,88.57511735]
[1723795327794,0.7491,145.0,144.99,116.61882444]
[1723795327978,0.7491,145.0,144.99,117.43650087]
[1723795328495,0.7491,145.0,144.99,115.36549]
[1723795328899,0.7491,145.0,144.99,118.94071943]
[1723795329139,0.7491,145.0,144.99,115.74196]
[1723795329985,0.7491,145.0,144.99,119.19168471]
[1723795330183,0.7491,145.0,144.99,117.12063221]
[1723795330493,0.7491,145.0,144.99,117.8130125]
[1723795330829,0.7491,145.0,144.99,115.74196]
[1723795330996,0.7491,145.0,144.99,117.8130125]
[1723795331198,0.7491,145.0,144.99,115.74196]
[1723795331402,0.7491,145.0,144.99,117.8130125]
[1723795331586,0.7491,145.0,144.99,115.74196]
[1723795331790,0.7491,145.0,144.99,117.8130125]
[1723795331989,0.7491,145.0,144.99,115.74196]
[1723795332208,0.7491,145.0,144.99,117.8130125]
[1723795332420,0.7491,145.0,144.99,115.74196]
[1723795332592,0.7491,145.0,144.99,117.8130125]
[1723795332790,0.7491,145.0,144.99,115.74196]
[1723795333007,0.7491,145.0,144.99,117.8130125]
[1723795333330,0.7491,145.0,144.99,115.74196]
[1723795333528,0.7491,145.0,144.99,117.8130125]
[1723795333736,0.7491,145.0,144.99,115.74196]
[1723795334020,0.7491,145.0,144.99,117.8130101]
[1723795334230,0.7491,145.0,144.99,115.74196]
[1723795334398,0.7491,145.0,144.99,105.50196]
[1723795334721,0.7491,145.0,144.99,115.74196]
[1723795335102,0.7491,145.0,144.99,117.12061752]
[1723795336037,0.7491,145.0,144.99,115.74196]
[1723795337608,0.7491,145.0,144.99,117.81306273]
[1723795337840,0.7491,145.0,144.99,115.74196]
[1723795338138,0.7491,145.0,144.99,117.81306273]
[1723795338340,0.7491,145.0,144.99,70.24]
[1723795339836,0.7491,145.0,144.99,115.61647]
[1723795340006,0.7491,145.0,144.99,70.61647]
[1723795340212,0.7491,145.0,144.99,60.25098]
[1723795342037,0.7491,145.0,144.99,105.37647]
[1723795342921,0.7491,145.0,144.99,60.25098]
[1723795343612,0.7491,145.0,144.99,60.0]
[1723795344024,0.7491,145.0,144.99,40.0]
[1723795345328,0.7491,145.0,144.99,41.37902131]
[1723795345527,0.7491,145.0,144.99,41.63000131]
[1723795345733,0.7491,145.0,144.99,40.25098]
[1723795346240,0.7491,145.0,144.99,85.37647]
[1723795352056,0.7491,145.0,144.98,21.37896457]
[1723795352232,0.7491,145.0,144.98,20.0]
[1723795353834,0.7491,145.0,144.97,7.20777116]
[1723795354154,6.8677,145.0,144.97,7.20777116]
[1723795354559,16.213,144.99,144.97,7.20777116]
[1723795354959,16.213,144.99,144.94,26.23973843]
[1723795355140,16.213,144.99,144.95,2.07184671]
[1723795355328,16.213,144.99,144.95,7.20788525]
[1723795355660,16.213,144.99,144.96,20.0]
[1723795355854,16.213,144.99,144.95,7.20788525]
[1723795358995,6.898,144.97,144.95,7.20788525]
[1723795359276,6.898,144.97,144.89,12.42684284]
[1723795359277,23.3611,144.96,144.89,30.2278777]
[1723795359458,16.4625,144.96,144.9,8.31433067]
[1723795359666,16.4625,144.96,144.91,2.07227153]
[1723795359986,16.4625,144.96,144.89,43.6668869]
[1723795360187,16.4625,144.96,144.9,2.07227282]
[1723795360481,16.4625,144.96,144.91,22.07221976]
[1723795360675,16.4625,144.96,144.91,20.0]
[1723795360977,16.4625,144.96,144.9,2.07226496]
[1723795360978,6.899,144.95,144.9,2.07226496]
[1723795361277,6.899,144.95,144.9,2.07231179]
[1723795361666,23.361,144.96,144.9,2.07231179]
[1723795362165,23.361,144.96,144.9,2.07231046]
[1723795362476,23.361,144.96,144.89,27.21310597]
[1723795363253,23.361,144.96,144.89,29.28541799]
[1723795363465,16.4625,144.96,144.9,10.24]
[1723795363667,16.4625,144.96,144.91,0.12549]
[1723795364076,23.361,144.96,144.9,12.31222071]
[1723795364288,23.361,144.96,144.9,10.24]
[1723795368069,23.361,144.96,144.89,27.21310597]
[1723795368279,23.361,144.96,144.9,20.0]
[1723795370287,6.8991,144.95,144.9,20.0]
[1723795370875,23.361,144.96,144.9,20.0]
[1723795371085,23.361,144.96,144.91,1.3799871]
[1723795371259,16.4625,144.96,144.91,20.0]
[1723795371962,16.4625,144.96,144.92,1.37973947]
[1723795372166,16.4625,144.96,144.91,20.0]
[1723795372680,16.4625,144.96,144.92,1.37974034]
[1723795372882,16.4625,144.96,144.91,20.0]
[1723795377010,16.4625,144.96,144.93,20.0]
[1723795377539,15.6566,144.99,144.95,20.0]
[1723795377701,15.6566,144.99,144.96,1.37941059]
[1723795378005,15.6566,144.99,144.94,10.24]
[1723795378381,15.6566,144.99,144.95,1.37956041]
[1723795378907,15.6566,144.99,144.94,10.24]
[1723795379689,15.6566,144.99,144.92,0.25098]
[1723795379891,6.8987,144.96,144.9,20.0]
[1723795380410,0.12549,144.98,144.9,20.0]
[1723795380411,6.8981,144.97,144.9,30.24]
[1723795381295,6.8981,144.97,144.91,20.0]
[1723795381818,6.8984,144.96,144.9,20.0]
[1723795384509,6.8984,144.96,144.89,7.33749715]
[1723795384833,6.8984,144.96,144.9,20.0]
[1723795386642,17.1381,144.97,144.9,40.0]
[1723795386811,6.8981,144.97,144.9,50.24]
[1723795388510,6.8981,144.97,144.9,70.24]
[1723795388720,6.8976,144.98,144.92,20.0]
[1723795388930,22.5537,144.99,144.92,20.0]
[1723795389147,22.5537,144.99,144.92,30.24]
[1723795389626,22.5537,144.99,144.92,50.24]
[1723795390124,22.5537,144.99,144.92,30.24]
[1723795391550,22.5537,144.99,144.94,20.0]
[1723795391924,22.5537,144.99,144.92,30.24]
[1723795392124,22.5537,144.99,144.94,20.0]
[1723795392830,22.5537,144.99,144.92,30.24]
[1723795393028,22.5537,144.99,144.92,20.0]
[1723795393234,6.8975,144.98,144.92,22.07202723]
[1723795393738,6.8975,144.98,144.94,20.0]
[1723795394111,6.8975,144.98,144.92,22.07202723]
[1723795394334,6.8975,144.98,144.92,20.0]
[1723795396852,6.8979,144.97,144.9,57.45096677]
[1723795397143,25.8966,144.99,144.9,57.45096677]
[1723795397144,6.8985,144.96,144.91,3.4519973]
[1723795397359,6.8995,144.94,144.9,47.21096677]
[1723795397548,10.24,144.97,144.91,2.07230369]
[1723795397734,6.8989,144.95,144.9,53.42601799]
[1723795397942,6.8985,144.96,144.91,2.07230395]
[1723795398135,6.8985,144.96,144.9,53.42601799]
[1723795398328,22.5142,144.95,144.91,2.07231991]
[1723795398528,22.5142,144.95,144.9,27.21096677]
[1723795398728,15.6152,144.95,144.91,2.07241707]
[1723795398938,15.6152,144.95,144.9,27.21096677]
[1723795399133,15.6152,144.95,144.91,2.07240997]
[1723795399329,15.6152,144.95,144.9,27.21096677]
[1723795399530,15.6152,144.95,144.91,2.07242862]
[1723795399725,15.6152,144.95,144.9,27.21096677]
[1723795399947,15.6152,144.95,144.91,2.07242057]
[1723795400137,15.6152,144.95,144.9,27.21096677]
[1723795400339,22.5141,144.95,144.91,2.07242947]
[1723795400550,22.5141,144.95,144.9,27.21096677]
[1723795400756,22.5141,144.95,144.91,2.07242885]
[1723795401061,6.8995,144.94,144.9,7.21096677]
[1723795401240,22.5142,144.95,144.91,2.07243525]
[1723795401556,22.5142,144.95,144.91,20.0]
[1723795404161,22.5142,144.95,144.9,7.21096677]
[1723795404334,22.5142,144.95,144.91,2.07243572]
[1723795404533,6.8995,144.94,144.9,7.21096677]
[1723795404960,6.8995,144.94,144.91,2.07255012]
[1723795405174,6.8995,144.94,144.9,7.21096677]
[1723795405386,6.8995,144.94,144.91,2.07251406]
[1723795405535,6.8995,144.94,144.9,7.21096677]
[1723795405743,6.8995,144.94,144.91,2.0725254]
[1723795405955,28.7249,144.95,144.9,7.21096677]
[1723795406264,28.7249,144.95,144.91,2.07251689]
[1723795406470,28.7249,144.95,144.9,7.21096677]
[1723795406659,28.7249,144.95,144.91,2.07250916]
[1723795406835,28.7249,144.95,144.9,7.21096677]
[1723795407036,28.7249,144.95,144.91,2.07252749]
[1723795407347,28.7249,144.95,144.9,7.21096677]
[1723795407547,28.7249,144.95,144.91,2.07252749]
[1723795407851,28.7249,144.95,144.9,7.21096677]
[1723795408054,28.7249,144.95,144.91,2.07253222]
[1723795408241,28.7249,144.95,144.9,7.21096677]
[1723795408643,28.7249,144.95,144.91,2.07253222]
[1723795408844,28.7249,144.95,144.9,7.21096677]
[1723795409137,28.7249,144.95,144.91,2.072521]
[1723795409343,28.7249,144.95,144.9,7.21096677]
[1723795409741,6.8999,144.93,144.9,7.21096677]
[1723795409962,0.12549,144.94,144.9,7.21096677]
[1723795409963,7.02499,144.94,144.9,7.21096677]
[1723795410139,6.8995,144.94,144.9,7.21096677]
[1723795410486,28.7249,144.95,144.9,7.21096677]
[1723795411268,28.7249,144.95,144.91,2.07249033]
[1723795411577,28.7249,144.95,144.9,7.21096677]
[1723795411749,28.7249,144.95,144.91,2.07244482]
[1723795411953,28.7249,144.95,144.9,7.21096677]
[1723795412152,28.7249,144.95,144.91,2.07243422]
[1723795412334,28.7249,144.95,144.9,7.21096677]
[1723795412538,28.7249,144.95,144.91,2.0724336]
[1723795412735,28.7249,144.95,144.9,7.21096677]
[1723795412964,28.7249,144.95,144.91,2.0724466]
[1723795413151,28.7249,144.95,144.9,7.21096677]
[1723795413357,28.7249,144.95,144.91,2.07244722]
[1723795413570,28.7249,144.95,144.9,7.21096677]
[1723795413867,28.7249,144.95,144.91,2.07244478]
[1723795414076,28.7249,144.95,144.9,7.21096677]
[1723795414637,6.8994,144.94,144.9,7.21096677]
[1723795415668,28.7251,144.95,144.9,7.21096677]
[1723795416038,6.8995,144.94,144.9,7.21096677]
[1723795416754,1.72515755,144.93,144.87,42.62442295]
[1723795416943,1.72515755,144.93,144.88,28.28345631]
[1723795417142,6.8995,144.94,144.89,8.28345631]
[1723795417373,6.8995,144.94,144.9,2.07254745]
[1723795417563,6.8995,144.94,144.88,20.0]
[1723795417771,6.8995,144.94,144.89,2.0725503]
[1723795417968,6.9008,144.91,144.9,2.0725503]
[1723795418156,6.9008,144.91,144.85,10.19582967]
[1723795418363,6.9008,144.91,144.86,15.50285788]
[1723795418552,6.9008,144.91,144.87,2.0729018]
[1723795418753,6.9008,144.91,144.88,2.0729018]
[1723795418958,6.9008,144.91,144.86,7.21562911]
[1723795419171,26.79319,144.93,144.87,8.28535671]
[1723795419172,6.9005,144.92,144.87,8.28535671]
[1723795419363,6.9005,144.92,144.88,2.07282719]
[1723795419576,6.9005,144.92,144.87,6.21250382]
[1723795419783,6.9005,144.92,144.88,2.07275145]
[1723795420087,6.9005,144.92,144.86,27.21562911]
[1723795420088,23.3277,144.93,144.87,6.21240751]
[1723795420256,23.3277,144.93,144.88,2.0727325]
[1723795420579,23.3277,144.93,144.86,27.21562911]
[1723795420763,23.3277,144.93,144.87,8.28491698]
[1723795420966,23.3277,144.93,144.86,27.21562911]
[1723795420967,23.3277,144.93,144.88,2.07273188]
[1723795421175,23.3277,144.93,144.87,6.21249166]
[1723795421356,23.3277,144.93,144.88,2.07273188]
[1723795421676,23.3277,144.93,144.87,6.21217778]
[1723795421866,23.3277,144.93,144.86,27.21562911]
[1723795422053,23.3277,144.93,144.87,8.28471405]
[1723795422263,23.3277,144.93,144.88,22.0727479]
[1723795422566,23.3277,144.93,144.88,20.0]
[1723795422946,23.3277,144.93,144.89,2.07264201]
[1723795423190,23.3277,144.93,144.88,20.0]
[1723795423358,16.4277,144.93,144.89,2.07264139]
[1723795423691,16.4277,144.93,144.88,20.0]
[1723795423889,16.4277,144.93,144.89,2.07253796]
[1723795424058,16.4277,144.93,144.88,20.0]
[1723795424251,16.4277,144.93,144.89,2.07253796]
[1723795424452,16.4277,144.93,144.9,2.07253796]
[1723795424668,16.4277,144.93,144.88,20.0]
[1723795424896,16.4277,144.93,144.89,2.07253796]
[1723795425181,16.4277,144.93,144.9,2.07253796]
[1723795425381,16.4277,144.93,144.88,20.0]
[1723795425556,16.4277,144.93,144.89,2.07253672]
[1723795425754,16.4277,144.93,144.9,2.07253672]
[1723795425985,16.4277,144.93,144.88,20.0]
[1723795426175,16.4277,144.93,144.89,2.07253672]
[1723795426371,16.4277,144.93,144.9,2.07253672]
[1723795426568,16.4277,144.93,144.88,20.0]
[1723795426766,16.4277,144.93,144.89,2.07253796]
[1723795426976,16.4277,144.93,144.9,2.07253796]
[1723795427186,16.4277,144.93,144.88,20.0]
[1723795427388,16.4277,144.93,144.89,2.07253796]
[1723795427676,16.4277,144.93,144.9,2.07253796]
[1723795427888,16.4277,144.93,144.88,20.0]
[1723795428078,16.4277,144.93,144.89,2.07253672]
[1723795428389,16.4277,144.93,144.9,2.07253672]
[1723795428563,16.4277,144.93,144.88,20.0]
[1723795428763,16.4277,144.93,144.89,8.28421857]
[1723795428957,16.4277,144.93,144.9,2.07253796]
[1723795429191,16.4277,144.93,144.89,6.21167355]
[1723795429360,16.4277,144.93,144.9,2.07252611]
[1723795429701,16.4277,144.93,144.88,20.0]
[1723795429862,16.4277,144.93,144.89,2.07252673]
[1723795430070,16.4277,144.93,144.9,2.07252673]
[1723795430398,16.4277,144.93,144.89,6.21231373]
[1723795430572,16.4277,144.93,144.9,2.07252433]
[1723795430775,16.4277,144.93,144.88,20.0]
[1723795430976,16.4277,144.93,144.89,2.07253796]
[1723795431282,16.4277,144.93,144.9,2.07253796]
[1723795431498,16.4277,144.93,144.89,6.2109286]
[1723795431684,16.4277,144.93,144.9,2.07252549]
[1723795431884,6.9022,144.88,144.87,7.21415714]
[1723795432067,0.12549,144.91,144.83,10.19721532]
[1723795432068,6.9019,144.89,144.83,10.19721532]
[1723795432290,1.85123877,144.91,144.82,20.0]
[1723795432471,6.9018,144.89,144.83,18.49580782]
[1723795432808,6.9031,144.87,144.84,2.07316926]
[1723795432969,6.9031,144.87,144.82,20.0]
[1723795433190,6.9032,144.86,144.83,2.07328541]
[1723795433502,6.9032,144.86,144.84,2.07328541]
[1723795433703,6.9032,144.86,144.81,6.19276666]
[1723795433704,1.72608056,144.85,144.82,6.19276666]
[1723795434014,1.72608056,144.85,144.79,6.19261147]
[1723795434015,1.72623185,144.84,144.79,6.19261147]
[1723795434296,6.9047,144.83,144.8,2.07374157]
[1723795434486,6.9047,144.83,144.77,6.19261147]
[1723795434690,6.9047,144.83,144.78,2.07374791]
[1723795434895,6.9047,144.83,144.79,2.07374791]
[1723795435094,6.9047,144.83,144.77,2.0738627]
[1723795435410,6.9065,144.79,144.78,2.0738627]
[1723795435576,0.12549,144.83,144.74,20.0]
[1723795435577,6.9061,144.8,144.74,20.0]
[1723795435772,6.9061,144.8,144.74,27.19962562]
[1723795435974,6.9061,144.8,144.74,7.19962562]
[1723795436203,1.72683988,144.79,144.74,7.19962562]
[1723795436499,6.9061,144.8,144.73,7.19951853]
[1723795437209,10.24,144.77,144.73,7.19951853]
[1723795437375,10.24,144.77,144.7,20.0]
[1723795437577,10.24,144.77,144.7,27.21761543]
[1723795438007,6.908,144.76,144.7,27.21761543]
[1723795438211,10.36549,144.77,144.7,7.21761543]
[1723795438422,7.03359,144.76,144.7,7.21761543]
[1723795438607,0.12549,144.76,144.7,20.0]
[1723795438805,13.0054,144.78,144.71,10.24]
[1723795439515,13.0054,144.78,144.7,7.20806443]
[1723795439516,0.12549,144.77,144.7,27.20806443]
[1723795439684,13.0054,144.78,144.71,20.0]
[1723795440198,6.9077,144.77,144.71,20.0]
[1723795440396,11.96733298,144.77,144.7,7.20806443]
[1723795440725,0.12549,144.76,144.68,20.0]
[1723795440927,0.12549,144.76,144.68,27.20830031]
[1723795441635,6.9098,144.73,144.68,27.20830031]
[1723795441795,6.9098,144.73,144.68,7.20830031]
[1723795441993,7.03449,144.74,144.66,20.0]
[1723795442220,7.03449,144.74,144.67,7.20203571]
[1723795442427,6.909,144.74,144.68,20.0]
[1723795442918,6.909,144.74,144.66,20.0]
[1723795442919,6.9098,144.73,144.66,20.0]
[1723795443120,6.9098,144.73,144.67,20.0]
[1723795443327,6.9098,144.73,144.68,20.0]
[1723795443534,17.27449,144.74,144.68,20.0]
[1723795445231,0.12549,144.73,144.67,20.0]
[1723795445427,7.03489,144.73,144.68,20.0]
[1723795445633,7.03489,144.73,144.67,20.0]
[1723795446038,7.03489,144.73,144.68,20.0]
[1723795446209,6.9094,144.73,144.68,20.0]
[1723795446605,6.9094,144.73,144.67,20.0]
[1723795447333,6.9094,144.73,144.68,20.0]
[1723795447534,6.909,144.74,144.68,20.0]
[1723795447941,15.8962,144.75,144.68,20.0]
[1723795448114,15.8962,144.75,144.68,30.24]
[1723795449035,22.8046,144.75,144.69,20.0]
[1723795450320,6.9089,144.74,144.67,20.0]
[1723795450637,6.9094,144.73,144.67,20.0]
[1723795451815,6.909,144.74,144.67,20.0]
[1723795452124,1.72771577,144.73,144.67,20.0]
[1723795452518,17.1497,144.73,144.66,7.20905464]
[1723795452722,0.12549,144.72,144.66,7.20905464]
[1723795452981,0.12549,144.72,144.64,20.0]
[1723795452982,10.24,144.71,144.64,20.0]
[1723795453125,15.4947,144.7,144.64,20.0]
[1723795453514,22.4056,144.7,144.64,20.0]
[1723795456554,15.4947,144.7,144.64,20.0]
[1723795457566,17.22264408,144.7,144.64,20.0]
[1723795457733,1.72823789,144.69,144.64,20.0]
[1723795457934,0.12549,144.69,144.62,27.20501635]
[1723795458169,7.03679,144.69,144.63,20.0]
[1723795459269,0.12549,144.69,144.63,20.0]
[1723795459489,22.4056,144.7,144.63,20.0]
[1723795461053,22.4056,144.7,144.64,20.0]
[1723795461249,22.4056,144.7,144.63,20.0]
[1723795461770,22.4056,144.7,144.64,20.0]
[1723795463065,22.4056,144.7,144.63,20.0]
[1723795463956,22.4056,144.7,144.64,20.0]
[1723795466091,15.4947,144.7,144.66,20.0]
[1723795467482,22.0147,144.73,144.68,20.0]
[1723795467683,22.0147,144.73,144.65,10.36549]
[1723795467684,22.0147,144.73,144.66,20.0]
[1723795468084,28.9243,144.73,144.66,20.0]
[1723795468386,22.0147,144.73,144.66,20.0]
[1723795468562,22.0147,144.73,144.68,20.0]
[1723795468763,22.0147,144.73,144.65,30.24]
[1723795468979,22.0147,144.73,144.66,20.0]
[1723795469381,15.9979,144.73,144.7,20.0]
[1723795469677,29.4645,144.77,144.71,1.38188412]
[1723795469883,22.557,144.77,144.7,20.0]
[1723795470258,16.1609,144.77,144.72,20.0]
[1723795470455,16.1609,144.77,144.74,20.0]
[1723795470804,6.6115,144.8,144.73,20.0]
[1723795472186,13.5176,144.8,144.73,20.0]
[1723795472860,23.7576,144.8,144.73,20.0]
[1723795474485,23.7576,144.8,144.75,20.0]
[1723795475266,6.9068,144.79,144.75,20.0]
[1723795475475,23.7577,144.8,144.75,20.0]
[1723795476363,6.6115,144.8,144.75,20.0]
[1723795476574,16.8515,144.8,144.73,20.0]
[1723795477192,6.6115,144.8,144.74,30.24]
[1723795477690,16.5968,144.81,144.74,30.24]
[1723795478484,23.5024,144.81,144.74,30.24]
[1723795479586,23.5024,144.81,144.74,20.0]
[1723795480599,1.72681463,144.8,144.74,20.0]
[1723795481076,23.5024,144.81,144.74,20.0]
[1723795484118,6.9061,144.8,144.72,30.24]
[1723795484405,1.72693653,144.79,144.73,20.0]
[1723795485822,8.63383653,144.79,144.73,20.0]
[1723795486303,0.12549,144.8,144.73,20.0]
[1723795487411,7.03149,144.8,144.74,20.0]
[1723795487823,0.12549,144.8,144.74,20.0]
[1723795487980,23.5025,144.81,144.74,20.0]
[1723795488179,23.5025,144.81,144.76,20.0]
[1723795489183,23.5025,144.81,144.73,40.0]
[1723795492624,16.5968,144.81,144.73,40.0]
[1723795492921,6.9062,144.8,144.73,40.0]
[1723795493140,8.63358131,144.79,144.73,40.0]
[1723795493301,8.63358131,144.79,144.73,20.0]
[1723795493832,8.63358131,144.79,144.71,20.0]
[1723795493833,0.12549,144.78,144.72,20.0]
[1723795494321,6.9066,144.79,144.72,20.0]
[1723795495348,0.12549,144.8,144.72,50.24]
[1723795495693,6.9075,144.77,144.72,50.24]
[1723795495893,6.9068,144.79,144.72,50.24]
[1723795498230,0.12549,144.78,144.72,40.0]
[1723795499116,22.4873,144.77,144.72,20.0]
[1723795499307,29.3952,144.77,144.69,27.19609808]
[1723795500229,29.3952,144.77,144.71,20.0]
[1723795500417,22.4873,144.77,144.71,20.0]
[1723795501515,29.3948,144.77,144.71,20.0]
[1723795502227,29.3948,144.77,144.7,10.24]
[1723795502228,22.4873,144.77,144.73,20.0]
[1723795502534,22.4873,144.77,144.71,20.0]
[1723795503734,1.72728335,144.76,144.7,10.24]
[1723795503926,29.395,144.77,144.71,20.0]
[1723795504233,7.03349,144.76,144.69,27.19609808]
[1723795504402,7.03349,144.76,144.7,20.0]
[1723795504804,0.12549,144.76,144.69,7.19609808]
[1723795505006,0.12549,144.76,144.66,10.24]
[1723795505209,0.12549,144.76,144.67,27.18535479]
[1723795505813,6.9087,144.75,144.69,20.0]
[1723795507710,6.9087,144.75,144.67,27.18535479]
[1723795507906,6.9087,144.75,144.68,20.0]
[1723795510640,17.1487,144.75,144.68,20.0]
[1723795511428,18.87630775,144.75,144.68,20.0]
[1723795511628,17.1487,144.75,144.69,20.0]
[1723795512355,17.1487,144.75,144.68,20.0]
[1723795512634,7.03459,144.74,144.68,20.0]
[1723795513240,7.03459,144.74,144.67,27.18535479]
[1723795513241,26.5295,144.73,144.67,27.18535479]
[1723795513441,10.24,144.71,144.66,2.07565545]
[1723795513744,10.24,144.71,144.65,2.0758606]
[1723795514036,13.50739,144.72,144.64,20.0]
[1723795514343,13.50739,144.72,144.65,2.07583545]
[1723795514344,6.59749,144.72,144.65,2.07583545]
[1723795514646,6.472,144.72,144.66,23.45805966]
[1723795514807,6.472,144.72,144.66,20.0]
[1723795515006,6.472,144.72,144.66,22.0757847]
[1723795515325,6.472,144.72,144.66,20.0]
[1723795515734,6.472,144.72,144.66,22.07578884]
[1723795516340,6.472,144.72,144.66,20.0]
[1723795516661,13.3819,144.72,144.65,20.0]
[1723795516815,13.3819,144.72,144.65,40.0]
[1723795517631,6.472,144.72,144.67,20.0]
[1723795519331,6.472,144.72,144.65,50.24]
[1723795519538,6.472,144.72,144.65,52.31567874]
[1723795519736,6.472,144.72,144.65,72.31567874]
[1723795519928,6.472,144.72,144.67,20.0]
[1723795522146,16.2895,144.73,144.69,20.0]
[1723795525054,16.2895,144.73,144.67,30.24]
[1723795525554,16.2895,144.73,144.69,20.0]
[1723795527442,16.2895,144.73,144.67,20.0]
[1723795531059,23.1989,144.73,144.67,20.0]
[1723795531975,16.2895,144.73,144.67,20.0]
[1723795532471,16.2895,144.73,144.67,10.24]
[1723795532682,16.2895,144.73,144.67,12.31562187]
[1723795532854,16.2895,144.73,144.67,10.24]
[1723795538254,16.2895,144.73,144.66,20.12549]
[1723795538450,16.2895,144.73,144.67,22.07568841]
[1723795538649,16.2895,144.73,144.67,20.0]
[1723795538847,23.199,144.73,144.67,20.0]
[1723795539050,23.1992,144.73,144.67,20.0]
[1723795539260,33.9956,144.76,144.69,30.24]
[1723795539261,6.4855,144.76,144.69,30.24]
[1723795539465,6.4855,144.76,144.7,22.07528871]
[1723795539680,6.4855,144.76,144.71,2.07518711]
[1723795539848,6.4855,144.76,144.7,20.0]
[1723795540056,6.4855,144.76,144.71,2.07519381]
[1723795540384,15.4588,144.77,144.72,20.0]
[1723795544665,15.2462,144.81,144.74,40.0]